fUSD/lending_fUSD_20260108
["ID","MTS","AMOUNT","RATE_DAILY","PERIOD"]
[400863489,1767847843179,-300.0,0.00017488,2]
[400863491,1767847843188,-300.0,0.00017491,2]
[400863493,1767847843197,-300.0,0.00017491,2]
[400863495,1767847843206,-150.0,0.00017492,2]
[400863497,1767847843215,-300.0,0.00017495,2]
[400863499,1767847843225,-300.0,0.00017495,2]
[400863501,1767847843234,-3292.0,0.00017495,2]
[400863503,1767847843244,-500.0,0.00017499,2]
[400863506,1767847843254,-300.0,0.000175,2]
[400863508,1767847843263,-1513.79086394,0.00017502,2]
[400863510,1767847843273,-3000.0,0.00017502,2]
[400863511,1767847843282,-374.30420202,0.00017502,2]
[400863513,1767847843292,-3000.0,0.00017502,2]
[400863516,1767847843301,-3000.0,0.00017502,2]
[400863517,1767847843311,-254.0,0.00017504,2]
[400863519,1767847843320,-2599.0,0.00017504,2]
[400863521,1767847843329,-219.6,0.0001751,2]
[400863524,1767847843338,-300.0,0.00017522,2]
[400863526,1767847843348,-300.0,0.00017526,2]
[400863527,1767847843358,-833.4,0.00017528,2]
[400863529,1767847843367,-1000.0,0.0001753,2]
[400863532,1767847843380,-1000.0,0.0001753,2]
[400863533,1767847843390,-254.0,0.00017532,2]
[400863535,1767847843399,-241.73307518,0.00017534,2]
[400863538,1767847843409,-219.59423452,0.00017535,2]
[400863539,1767847843418,-1000.0,0.00017536,2]
[400863542,1767847843430,-150.0,0.00017538,2]
[400863544,1767847843440,-300.0,0.00017544,2]
[400863546,1767847843448,-1000.0,0.0001755,2]
[400863548,1767847843460,-300.0,0.00017555,2]
[400863550,1767847843469,-1000.0,0.00017561,2]
[400863552,1767847843479,-1000.0,0.00017566,2]
[400863554,1767847843488,-1000.0,0.00017567,2]
[400863556,1767847843497,-150.0,0.00017569,2]
[400863558,1767847843506,-300.0,0.00017571,2]
[400863560,1767847843516,-163.7104368,0.00017573,2]
[400863562,1767847843524,-1000.0,0.00017578,2]
[400863564,1767847843534,-300.0,0.00017582,2]
[400863566,1767847843543,-1000.0,0.00017583,2]
[400863568,1767847843552,-150.0,0.00017585,2]
[400863570,1767847843561,-156.0,0.00017589,2]
[400863572,1767847843571,-833.4,0.00017596,2]
[400863574,1767847843581,-254.0,0.000176,2]
[400863576,1767847843590,-637.69822594,0.00017604,2]
[400863578,1767847843599,-1000.0,0.00017605,2]
[400863580,1767847843608,-300.0,0.00017612,2]
[400863582,1767847843618,-150.0,0.00017617,2]
[400863584,1767847843627,-787.62614361,0.00017619,2]
[400863586,1767847843636,-254.0,0.00017627,2]
[400863588,1767847843645,-150.0,0.00017631,2]
[400863590,1767847843655,-5309.74765664,0.0001764,2]
[400863592,1767847843664,-150.0,0.00017651,2]
[400863594,1767847843673,-300.0,0.00017651,2]
[400863596,1767847843683,-300.0,0.00017656,2]
[400863598,1767847843692,-150.0,0.0001766,2]
[400863600,1767847843701,-300.0,0.00017662,2]
[400863602,1767847843710,-833.4,0.00017663,2]
[400863604,1767847843719,-300.0,0.00017665,2]
[400863605,1767847843728,-197.20922502,0.00017673,2]
[400863608,1767847843738,-157.19112422,0.00017677,2]
[400863610,1767847843747,-150.0,0.00017677,2]
[400863612,1767847843756,-162.0,0.0001768,2]
[400863613,1767847843766,-833.0,0.0001768,2]
[400863616,1767847843775,-162.0,0.0001768,2]
[400863618,1767847843785,-379.0,0.0001768,2]
[400863619,1767847843794,-833.0,0.0001768,2]
[400863622,1767847843803,-25000.0,0.00017698,3]
[400863623,1767847843812,-1000.0,0.00017704,2]
[400863626,1767847843821,-25000.0,0.00017706,3]
[400863628,1767847843833,-1000.0,0.00017709,2]
[400863630,1767847843842,-500.0,0.00017714,2]
[400863632,1767847843852,-300.0,0.00017715,2]
[400863634,1767847843861,-168.51620742,0.00017715,2]
[400863636,1767847843870,-25000.0,0.00017715,3]
[400863638,1767847843880,-1000.0,0.00017718,2]
[400863640,1767847843888,-1000.0,0.00017721,2]
[400863642,1767847843897,-150.0,0.00017723,2]
[400863644,1767847843906,-25000.0,0.00017724,3]
[400863646,1767847843916,-1100.0,0.00017726,7]
[400863648,1767847843925,-300.0,0.00017727,2]
[400863650,1767847843934,-833.4,0.00017731,2]
[400863652,1767847843943,-184.55624416,0.00017732,2]
[400863654,1767847843952,-25000.0,0.00017733,3]
[400863656,1767847843961,-1000.0,0.00017738,2]
[400863658,1767847843970,-300.0,0.00017738,2]
[400863660,1767847843979,-25000.0,0.00017742,3]
[400863662,1767847843988,-1000.0,0.00017747,2]
[400863664,1767847843998,-1000.0,0.0001775,2]
[400863665,1767847844007,-25000.0,0.0001775,3]
[400863667,1767847844016,-637.69822592,0.00017752,2]
[400863669,1767847844025,-300.0,0.00017753,2]
[400863671,1767847844035,-25000.0,0.00017759,3]
[400863673,1767847844045,-168.51620742,0.00017761,2]
[400863675,1767847844054,-1000.0,0.00017762,2]
[400863678,1767847844064,-25000.0,0.00017768,3]
[400863680,1767847844073,-150.0,0.00017769,2]
[400863682,1767847844082,-661.47,0.00017775,2]
[400863684,1767847844092,-25000.0,0.00017777,3]
[400863686,1767847844101,-1000.0,0.00017779,2]
[400863688,1767847844110,-300.0,0.0001778,2]
[400863690,1767847844119,-25000.0,0.00017786,3]
[400863692,1767847844128,-150.0,0.00017786,2]
[400863694,1767847844137,-1000.0,0.00017792,2]
[400863696,1767847844147,-25000.0,0.00017794,3]
[400863698,1767847844156,-833.4,0.00017798,2]
[400863700,1767847844166,-1000.0,0.000178,2]
[400863702,1767847844175,-25000.0,0.00017803,3]
[400863704,1767847844184,-150.0,0.00017805,2]
[400863706,1767847844193,-168.51620742,0.00017808,2]
[400863708,1767847844202,-285.15739,0.00017811,2]
[400863709,1767847844211,-25000.0,0.00017812,3]
[400863711,1767847844220,-1000.0,0.00017812,2]
[400863713,1767847844229,-150.0,0.00017815,2]
[400863715,1767847844238,-300.0,0.00017818,2]
[400863717,1767847844247,-3871.87879,0.0001782,2]
[400863719,1767847844255,-3871.87879,0.0001782,2]
[400863721,1767847844264,-25000.0,0.00017821,3]
[400863723,1767847844273,-1000.0,0.00017826,2]
[400863725,1767847844283,-300.0,0.00017827,2]
[400863727,1767847844293,-410.25491874,0.00017829,2]
[400863730,1767847844302,-500.0,0.00017829,2]
[400863732,1767847844311,-500.0,0.00017829,2]
[400863733,1767847844320,-25000.0,0.0001783,3]
[400863735,1767847844329,-298.06900978,0.0001783,2]
[400863737,1767847844339,-3871.87879,0.0001783,2]
[400863739,1767847844348,-25000.0,0.00017838,3]
[400863741,1767847844357,-1000.0,0.0001784,2]
[400863743,1767847844367,-25000.0,0.00017847,3]
[400863745,1767847844376,-168.51620742,0.00017854,2]
[400863747,1767847844388,-300.0,0.00017854,2]
[400863749,1767847844397,-500.0,0.00017855,2]
[400863752,1767847844408,-150.0,0.00017855,2]
[400863754,1767847844419,-25000.0,0.00017856,3]
[400863756,1767847844428,-1000.0,0.00017856,2]
[400863758,1767847844438,-300.0,0.0001786,2]
[400863760,1767847844447,-3871.87879,0.0001786,2]
[400863762,1767847844459,-150.0,0.00017862,2]
[400863764,1767847844468,-25000.0,0.00017865,3]
[400863766,1767847844477,-833.4,0.00017865,2]
[400863768,1767847844486,-300.0,0.00017868,2]
[400863770,1767847844496,-177.4888516,0.00017872,3]
[400863771,1767847844505,-1000.0,0.00017872,2]
[400863772,1767847844514,-25000.0,0.00017874,3]
[400863773,1767847844523,-1000.0,0.00017876,2]
[400863774,1767847844532,-300.0,0.00017876,2]
[400863776,1767847844541,-254.0,0.00017876,2]
[400863778,1767847844549,-3871.87879,0.0001788,2]
[400863780,1767847844558,-25000.0,0.00017882,3]
[400863782,1767847844567,-25000.0,0.00017891,3]
[400863784,1767847844576,-300.0,0.00017893,2]
[400863786,1767847844585,-1000.0,0.00017896,2]
[400863788,1767847844595,-500.0,0.00017899,2]
[400863790,1767847844603,-25000.0,0.000179,3]
[400863792,1767847844612,-10000.0,0.000179,2]
[400863794,1767847844621,-959.36231953,0.000179,2]
[400863796,1767847844631,-637.69822592,0.000179,2]
[400863798,1767847844640,-15419.35188087,0.000179,3]
[400863800,1767847844649,-13525.77885099,0.000179,2]
[400863802,1767847844659,-17184.10341129,0.000179,2]
[400863804,1767847844669,-923.06403135,0.000179,2]
[400863806,1767847844678,-278.49885641,0.000179,2]
[400863808,1767847844687,-168.51620742,0.000179,2]
[400863810,1767847844696,-12661.0,0.000179,2]
[400863812,1767847844705,-5888.0,0.00017906,2]
[400863814,1767847844715,-150.0,0.00017908,2]
[400863816,1767847844725,-1000.0,0.0001791,2]
[400863818,1767847844734,-3871.8788,0.0001791,2]
[400863820,1767847844742,-1000.0,0.00017912,2]
[400863822,1767847844751,-2599.0,0.00017913,2]
[400863824,1767847844760,-1000.0,0.00017922,2]
[400863826,1767847844770,-300.0,0.00017923,2]
[400863828,1767847844779,-1000.0,0.00017933,2]
[400863830,1767847844788,-833.4,0.00017933,2]
[400863832,1767847844797,-1000.0,0.00017934,2]
[400863834,1767847844806,-150.0,0.00017936,2]
[400863836,1767847844816,-254.0,0.00017943,2]
[400863838,1767847844825,-150.0,0.00017954,2]
[400863840,1767847844834,-1000.0,0.00017965,2]
[400863842,1767847844844,-363.73176274,0.00017969,2]
[400863844,1767847844853,-1000.0,0.0001797,2]
[400863846,1767847844862,-1000.0,0.0001797,2]
[400863848,1767847844871,-500.0,0.0001797,2]
[400863850,1767847844880,-1000.0,0.0001797,2]
[400863852,1767847844889,-500.0,0.0001797,2]
[400863855,1767847844899,-1000.0,0.0001797,2]
[400863857,1767847844910,-1000.0,0.0001797,2]
[400863859,1767847844919,-500.0,0.0001797,2]
[400863861,1767847844928,-1000.0,0.0001797,2]
[400863863,1767847844937,-500.0,0.0001797,2]
[400863865,1767847844947,-1000.0,0.0001797,2]
[400863867,1767847844957,-984.41347442,0.0001797,2]
[400863869,1767847844966,-1000.0,0.0001797,2]
[400863871,1767847844975,-1000.0,0.0001797,2]
[400863873,1767847844984,-1246.54474908,0.0001797,2]
[400863875,1767847844994,-300.0,0.0001797,2]
[400863877,1767847845004,-500.75581913,0.00017973,2]
[400863879,1767847845013,-500.17178809,0.00017973,2]
[400863881,1767847845022,-500.0,0.00017973,2]
[400863883,1767847845032,-500.0,0.00017973,2]
[400863885,1767847845042,-338.62982115,0.00017973,2]
[400863887,1767847845050,-501.18870733,0.00017973,2]
[400863889,1767847845059,-500.0,0.00017973,2]
[400863891,1767847845068,-633.01352033,0.00017973,2]
[400863893,1767847845077,-500.0,0.00017973,2]
[400863895,1767847845086,-150.0,0.00017973,2]
[400863897,1767847845095,-1000.0,0.00017978,2]
[400863899,1767847845104,-906.09902352,0.00017982,2]
[400863901,1767847845113,-300.0,0.00017982,2]
[400863903,1767847845122,-500.0,0.00017982,2]
[400863905,1767847845131,-283.0,0.00017987,2]
[400863907,1767847845141,-1186.44134713,0.0001799,2]
[400863909,1767847845150,-1186.44134713,0.0001799,2]
[400863911,1767847845160,-300.0,0.00017994,2]
[400863913,1767847845169,-500.0,0.00017996,2]
[400863915,1767847845178,-500.0,0.00017996,2]
[400863917,1767847845187,-500.0,0.00017996,2]
[400863919,1767847845196,-194.549792,0.00017997,2]
[400863921,1767847845205,-451.90263959,0.00017998,2]
[400863923,1767847845216,-1002.56468536,0.00017999,2]
[400863925,1767847845224,-177.65368226,0.00017999,2]
[400863927,1767847845233,-131823.4496799,0.00017999,2]
[400863929,1767847845242,-356321.0738974,0.00017999,2]
[400863932,1767847845259,-39149.275142,0.00017999,2]
[400863934,1767847845268,-11482.7929936,0.00017999,2]
[400863936,1767847845277,-300.0,0.00017999,2]
[400863938,1767847845286,-666.0,0.00017999,2]
[400863940,1767847845294,-500.0,0.00017999,2]
[400863942,1767847845304,-500.0,0.00017999,2]
[400863945,1767847845314,-500.0,0.00017999,2]
[400863947,1767847845323,-500.0,0.00017999,2]
[400863949,1767847845331,-500.0,0.00017999,2]
[400863950,1767847845340,-500.0,0.00017999,2]
[400863953,1767847845350,-500.0,0.00017999,2]
[400863954,1767847845359,-338.00886573,0.00017999,2]
[400863956,1767847845368,-732.18530352,0.00017999,2]
[400863958,1767847845377,-666.0,0.00017999,2]
[400863960,1767847845389,-300.0,0.00017999,2]
[400863962,1767847845399,-666.0,0.00017999,2]
[400863965,1767847845408,-300.0,0.00017999,2]
[400863967,1767847845418,-666.0,0.00017999,2]
[400863969,1767847845428,-300.0,0.00017999,2]
[400863971,1767847845437,-5970.77362135,0.00017999,2]
[400863973,1767847845446,-154.67877044,0.00018,2]
[400863975,1767847845457,-4593200.20189674,0.00018,2]
[400863977,1767847845466,-1390690.88527952,0.00018,2]
[400863982,1767847845504,-563.94852852,0.00018,2]
[400863984,1767847845514,-11975.73598968,0.00018,2]
[400863987,1767847845528,-10869.68645824,0.00018,2]
[400863989,1767847845539,-312618.59183053,0.00018,2]
[400863991,1767847845549,-348.01441186,0.00018,2]
[400863996,1767847845581,-381.17507781,0.00018,2]
[400863998,1767847845592,-1245.51352286,0.00018,2]
[400864000,1767847845603,-1513.73652413,0.00018,2]
[400864039,1767847845949,-840.8243908,0.00018,2]
[400864041,1767847845960,-1662.18612278,0.00018,2]
[400864043,1767847845972,-4264.09911204,0.00018,2]
[400864045,1767847845983,-394.07870975,0.00018,2]
[400864048,1767847845998,-2056.40951429,0.00018,2]
[400864050,1767847846008,-667.02939424,0.00018,2]
[400864052,1767847846020,-374.10410906,0.00018,2]
[400864054,1767847846031,-497.12974831,0.00018,2]
[400864139,1767847846855,-151.0,0.00016209,2]
[400864141,1767847846864,-151.0,0.00016209,2]
[400864143,1767847846874,-661.47,0.00017041,2]
[400864145,1767847846882,-3040.63,0.00018,2]
[400864148,1767847846894,-9384.4,0.00018,2]
[400866655,1767847873333,10000.01,0.00013145,2]
[400866659,1767847873357,10000.01,0.00013145,2]
[400866662,1767847873379,10000.01,0.00013145,2]
[400866665,1767847873404,3580.3523,0.00013145,2]
[400866677,1767847884638,436.72133943,0.00013144,2]
[400866678,1767847886761,533.05525727,0.00013144,2]
[400866679,1767847888411,500.0,0.00013144,2]
[400866680,1767847888755,500.0,0.00013144,2]
[400866681,1767847889182,500.0,0.00013144,2]
[400866682,1767847889220,229.43737517,0.00013144,2]
[400866683,1767847890171,500.0,0.00013144,2]
[400866684,1767847890284,500.0,0.00013144,2]
[400866685,1767847890366,370.15876787,0.00013144,2]
[400866686,1767847890657,2350.28496026,0.00013145,2]
[400866687,1767847890682,10000.01,0.00013145,2]
[400866688,1767847895326,-503.28319711,0.00013144,2]
[400866689,1767847895359,-948.14402246,0.00013144,2]
[400866690,1767847895390,-948.14402246,0.00013144,2]
[400866691,1767847895427,-948.14402246,0.00013144,2]
[400866692,1767847895461,-948.14402246,0.00013144,2]
[400866693,1767847895492,-460.14740364,0.00013144,2]
[400866694,1767847898335,500.0,0.00032877,120]
[400866695,1767847904468,-487.99661882,0.00013144,2]
[400866696,1767847904502,-948.14402246,0.00013144,2]
[400866697,1767847904534,-948.14402246,0.00013144,2]
[400866698,1767847904566,-948.14402246,0.00013144,2]
[400866699,1767847904597,-948.14402246,0.00013144,2]
[400866700,1767847904629,-490.72056022,0.00013144,2]
[400866701,1767847904690,-457.42346224,0.00013144,2]
[400866702,1767847904721,-948.14402246,0.00013144,2]
[400866703,1767847904752,-948.14402246,0.00013144,2]
[400866704,1767847904782,-948.14402246,0.00013144,2]
[400866705,1767847904813,-948.14402246,0.00013144,2]
[400866706,1767847904844,-551.86687338,0.00013144,2]
[400866707,1767847904924,-396.27714908,0.00013144,2]
[400866708,1767847904955,-948.14402246,0.00013144,2]
[400866709,1767847904987,-948.14402246,0.00013144,2]
[400866710,1767847905018,-948.14402246,0.00013144,2]
[400866711,1767847905050,-948.14402246,0.00013144,2]
[400866712,1767847905082,-674.1594997,0.00013144,2]
[400866713,1767847905877,-273.98452276,0.00013144,2]
[400866714,1767847905901,-948.14402246,0.00013144,2]
[400866715,1767847905925,-308.05949122,0.00013144,2]
[400866716,1767847906491,-640.08453124,0.00013144,2]
[400866717,1767847906527,-948.14402246,0.00013144,2]
[400866718,1767847906561,-948.14402246,0.00013144,2]
[400866719,1767847906595,-948.14402246,0.00013144,2]
[400866720,1767847906628,-948.14402246,0.00013144,2]
[400866721,1767847906670,-186.54473538,0.00013144,2]
[400866722,1767847909740,-761.59928708,0.00013144,2]
[400866723,1767847909773,-948.14402246,0.00013144,2]
[400866724,1767847909805,-948.14402246,0.00013144,2]
[400866725,1767847909837,-948.14402246,0.00013144,2]
[400866726,1767847909869,-948.14402246,0.00013144,2]
[400866727,1767847918812,500.0,0.00032877,120]
[400866728,1767847949231,500.0,0.00032877,120]
[400866729,1767848018799,-406.2528324,0.00013045,2]
[400866730,1767848020094,-4337.94012871,0.00013045,2]
[400866731,1767848037805,1324.12974258,0.00013045,2]
[400866732,1767848037826,494.7712901,0.00013045,2]
[400866733,1767848088127,350.0,0.00013045,2]
[400866734,1767848221356,500.0,0.00032877,120]
[400866735,1767848235981,445.64,0.00032877,120]
[400866736,1767848242156,-200.0,0.00013138,2]
[400866737,1767848242178,-200.0,0.00013138,2]
[400866738,1767848242199,-1.53167658,0.00013138,2]
[400866739,1767848245319,-201.30859244,0.00013138,2]
[400866740,1767848245339,-5.09893449,0.00013138,2]
[400866741,1767848246752,-230.85244452,0.00013138,2]
[400866742,1767848249170,-247.63682489,0.00013138,2]
[400866743,1767848250742,-16.4117961,0.00013138,2]
[400866744,1767848250763,-151.0,0.00013138,2]
[400866745,1767848250784,-151.0,0.00013138,2]
[400866746,1767848250805,-151.0,0.00013138,2]
[400866747,1767848250826,-151.0,0.00013138,2]
[400866748,1767848250848,-151.0,0.00013138,2]
[400866749,1767848250868,-151.0,0.00013138,2]
[400866750,1767848250889,-21.85984879,0.00013138,2]
[400866751,1767848253086,-129.14015121,0.00013138,2]
[400866752,1767848253108,-141.6909703,0.00013138,2]
[400866753,1767848256457,-9.3090297,0.00013138,2]
[400866754,1767848256487,-151.0,0.00013138,2]
[400866755,1767848256512,-62.66933545,0.00013138,2]
[400866756,1767848258859,-88.33066455,0.00013138,2]
[400866757,1767848258882,-82.38617934,0.00013138,2]
[400866758,1767848260904,-68.61382066,0.00013138,2]
[400866759,1767848260927,-151.0,0.00013138,2]
[400866760,1767848260949,-78.36222459,0.00013138,2]
[400866761,1767848264253,-72.63777541,0.00013138,2]
[400866762,1767848264277,-116.23289845,0.00013138,2]
[400866763,1767848267168,-34.76710155,0.00013138,2]
[400866764,1767848267191,-151.0,0.00013138,2]
[400866765,1767848267213,-106.66800868,0.00013138,2]
[400866766,1767848269279,-44.33199132,0.00013138,2]
[400866767,1767848269303,-151.0,0.00013138,2]
[400866768,1767848269328,-106.66800868,0.00013138,2]
[400866769,1767848271329,-44.33199132,0.00013138,2]
[400866770,1767848271351,-151.0,0.00013138,2]
[400866771,1767848271372,-63.61683301,0.00013138,2]
[400866772,1767848274756,-87.38316699,0.00013138,2]
[400866773,1767848274778,-89.4377614,0.00013138,2]
[400866774,1767848277086,-61.5622386,0.00013138,2]
[400866775,1767848277108,-151.0,0.00013138,2]
[400866776,1767848277134,-36.63369957,0.00013138,2]
[400866777,1767848280491,-114.36630043,0.00013138,2]
[400866778,1767848280514,-151.0,0.00013138,2]
[400866779,1767848280539,-84.63369957,0.00013138,2]
[400866780,1767848282757,-66.36630043,0.00013138,2]
[400866781,1767848282780,-128.63369957,0.00013138,2]
[400866782,1767848285558,-22.36630043,0.00013138,2]
[400866783,1767848285580,-151.0,0.00013138,2]
[400866784,1767848285600,-21.88632542,0.00013138,2]
[400866785,1767848287149,-129.11367458,0.00013138,2]
[400866786,1767848287172,-54.85724969,0.00013138,2]
[400866787,1767848289743,-96.14275031,0.00013138,2]
[400866788,1767848289765,-73.78646377,0.00013138,2]
[400866789,1767848362419,-77.21353623,0.00013138,2]
[400866790,1767848362450,-151.0,0.00013138,2]
[400866791,1767848362481,-250.0,0.00013142,2]
[400866792,1767848362515,-7.21636067,0.00013143,2]
[400866793,1767848364555,-187.20415455,0.00013143,2]
[400866794,1767848365937,-108.66474501,0.00013143,2]
[400866795,1767848365965,-172.83258673,0.00013143,2]
[400866796,1767848367995,-328.97649477,0.00013143,2]
[400866797,1767848370122,-327.35102196,0.00013143,2]
[400866798,1767848373124,-183.51205855,0.00013143,2]
[400866799,1767848375434,165.28238472,0.00013045,2]
[400866800,1767848375788,-187.32783799,0.00013143,2]
[400866801,1767848375815,-7.67216201,0.00013143,2]
[400866802,1767848377308,-292.32783799,0.00013143,2]
[400866803,1767848377331,-63.40227131,0.00013143,2]
[400866804,1767848379081,2500.0,0.00013045,2]
[400866805,1767848379989,-86.59772869,0.00013143,2]
[400866806,1767848380010,-65.84227131,0.00013143,2]
[400866807,1767848382127,-604.94804546,0.00013143,2]
[400866808,1767848384299,-325.52564244,0.00013143,2]
[400866809,1767848386553,-203.68404079,0.00013143,2]
[400866810,1767848386577,-250.0,0.00013143,2]
[400866811,1767848386599,-13.15215292,0.00013143,2]
[400866812,1767848390448,-218.25595483,0.00013143,2]
[400866813,1767848390470,-7.0201974,0.00013144,2]
[400866814,1767848390928,6356.73870421,0.00013045,2]
[400866815,1767848393593,-146.9798026,0.00013144,2]
[400866816,1767848393624,-155.0201974,0.00013144,2]
[400866817,1767848396143,-302.08022963,0.00013144,2]
[400866818,1767848398344,-240.47638426,0.00013143,2]
[400866819,1767848401502,10000.0,0.000202,30]
[400866820,1767848425831,628.97443668,0.00013045,2]
[400866821,1767848492971,152.34,0.00012883,2]
[400866822,1767848493014,196.67447439,0.00012883,2]
[400866823,1767848493038,1999.92952561,0.00012883,2]
[400866824,1767848527724,-234.79954054,0.00013138,2]
[400866825,1767848527745,-67.20045946,0.00013138,2]
[400866826,1767848542337,163.16005514,0.00013045,2]
[400866827,1767848542992,-132.79954054,0.00013138,2]
[400866828,1767848543014,-250.34198456,0.00013138,2]
[400866829,1767848549503,4342.16669961,0.00013045,2]
[400866830,1767848557367,-249.65801544,0.00013138,2]
[400866831,1767848557389,-67.71873295,0.00013138,2]
[400866832,1767848559493,-83.28126705,0.00013138,2]
[400866833,1767848559515,-84.7266744,0.00013138,2]
[400866834,1767848561315,-66.2733256,0.00013138,2]
[400866835,1767848561338,-151.0,0.00013138,2]
[400866836,1767848561361,-8.9089656,0.00013138,2]
[400866837,1767848564545,-142.0910344,0.00013138,2]
[400866838,1767848564576,-52.9089656,0.00013138,2]
[400866839,1767848567131,419.31629112,0.00013045,2]
[400866840,1767848567200,-98.0910344,0.00013138,2]
[400866841,1767848567229,-63.63271844,0.00013138,2]
[400866842,1767848570019,-87.36728156,0.00013138,2]
[400866843,1767848570041,-150.8691369,0.00013138,2]
[400866844,1767848573511,-0.1308631,0.00013138,2]
[400866845,1767848573532,-151.0,0.00013138,2]
[400866846,1767848573556,-21.60212281,0.00013138,2]
[400866847,1767848578446,304.96665944,0.00013045,2]
[400866851,1767848635491,2770.47076908,0.00013034,2]
[400866852,1767848635512,10000.01,0.00013034,2]
[400866853,1767848635538,5549.20923092,0.00013034,2]
[400866855,1767848676036,172.14876833,0.00013045,2]
[400866859,1767848706293,676.21756032,0.00013045,2]
[400866862,1767848724010,163.1600551,0.00013045,2]
[400866863,1767848726786,163.1600551,0.00013045,2]
[400866866,1767848777936,8825.32356115,0.00013045,2]
[400866867,1767848777967,1738.95973545,0.00013045,2]
[400866869,1767848822340,163.81,0.00010669,2]
[400866871,1767848842520,-129.39787719,0.00013138,2]
[400866872,1767848842544,-151.0,0.00013138,2]
[400866873,1767848842569,-151.0,0.00013138,2]
[400866874,1767848842592,-7.00643644,0.00013138,2]
[400866875,1767848846448,-192.99356356,0.00013138,2]
[400866876,1767848846475,-82.44367334,0.00013138,2]
[400866877,1767848849267,-207.44371838,0.00013138,2]
[400866878,1767848851697,450.81170688,0.00013045,2]
[400866879,1767848854741,-166.66,0.00013138,2]
[400866880,1767848856394,-43.45260828,0.00013138,2]
[400866881,1767848856417,-151.0,0.00013138,2]
[400866882,1767848856439,-89.76511129,0.00013138,2]
[400866883,1767848858806,-61.23488871,0.00013138,2]
[400866884,1767848858831,-138.7395343,0.00013138,2]
[400866885,1767848860888,-12.2604657,0.00013138,2]
[400866886,1767848860909,-151.0,0.00013138,2]
[400866887,1767848860931,-45.006352,0.00013138,2]
[400866888,1767848862129,207.4437,0.00013045,2]
[400866889,1767848862950,-105.993648,0.00013138,2]
[400866890,1767848862972,-151.0,0.00013138,2]
[400866891,1767848862994,-61.99687399,0.00013138,2]
[400866892,1767848864364,-89.00312601,0.00013138,2]
[400866893,1767848864389,-148.95548866,0.00013138,2]
[400866894,1767848866086,-2.04451134,0.00013138,2]
[400866895,1767848866112,-151.0,0.00013138,2]
[400866896,1767848866136,-46.95548866,0.00013138,2]
[400866898,1767848867619,-104.04451134,0.00013138,2]
[400866899,1767848867642,-75.28651121,0.00013138,2]
[400866900,1767848874231,166.15629287,0.00013045,2]
[400866905,1767848886746,166.15629287,0.00013045,2]
[400866906,1767848932805,150.0,0.00012771,2]
[400866908,1767848957904,6956.67227193,0.00013044,2]
[400866909,1767848957929,10000.01,0.00013044,2]
[400866910,1767848957956,10000.01,0.00013044,2]
[400866911,1767848957980,10000.01,0.00013044,2]
[400866912,1767848958004,10000.01,0.00013044,2]
[400866913,1767848962350,-268.00937545,0.00013044,2]
[400866914,1767848966245,-174.54690617,0.00013044,2]
[400866915,1767848968337,-319.55677254,0.00013044,2]
[400866916,1767848970420,-236.5514,0.00013044,2]
[400866923,1767848971292,166.66,0.00012329,2]
[400866931,1767848971522,166.66,0.00012526,2]
[400866934,1767848971910,166.66,0.00012723,2]
[400866935,1767848971956,166.66,0.00012921,2]
[400866936,1767848972507,-367.17014359,0.00013044,2]
[400866937,1767848992082,385.14413172,0.00012944,2]
[400866938,1767849001339,300.0,0.00013043,2]
[400866939,1767849001390,300.0,0.00013043,2]
[400866940,1767849001512,1200.0,0.00013043,2]